bitfinex-derivatives/quotes_ETHF0:USTF0_20251007
["timestamp","ask_amount","ask_price","bid_price","bid_amount"]
[1759852348600,1.63435,4502.0,4501.6,0.00255299]
[1759852348799,0.39957,4501.7,4501.6,0.00255299]
[1759852349001,0.9991,4500.9,4499.1,2.97498035]
[1759852349201,0.39972,4500.0,4499.7,0.231]
[1759852349406,0.99913,4500.8,4500.0,0.39971]
[1759852349698,0.99904,4501.2,4500.1,40.8]
[1759852350001,0.25088,4500.4,4500.1,41.2023587]
[1759852350202,0.25088,4500.4,4500.2,0.3997]
[1759852350403,0.25088,4500.4,4500.2,0.6307]
[1759852350599,0.39967,4500.6,4500.4,0.39968]
[1759852350798,0.6355,4501.0,4500.4,0.39968]
[1759852351004,0.6355,4501.0,4500.3,0.39969]
[1759852351204,0.6355,4501.0,4500.4,0.231]
[1759852351399,0.39967,4500.5,4500.4,0.231]
[1759852351808,0.39967,4500.6,4500.4,0.231]
[1759852352002,0.39965,4500.8,4500.4,0.63068]
[1759852352305,2.1959,4501.0,4500.5,0.231]
[1759852352503,2.1959,4501.0,4500.4,0.39968]
[1759852352504,0.39966,4500.6,4500.4,0.39968]
[1759852352810,0.39966,4500.6,4500.5,0.231]
[1759852353104,0.39969,4500.3,4500.1,41.2023587]
[1759852353409,0.39969,4500.3,4500.1,40.8026587]
[1759852353609,0.39969,4500.3,4500.2,0.231]
[1759852353805,0.39969,4500.3,4500.1,41.2023687]
[1759852354106,0.39969,4500.3,4500.1,0.4023687]
[1759852354408,0.39969,4500.3,4500.1,0.2336587]
[1759852354606,0.6679,4500.5,4500.1,0.4023687]
[1759852354805,0.99902,4501.3,4500.1,0.4023687]
[1759852354806,0.99899,4501.4,4500.2,0.231]
[1759852354999,0.3181297,4501.5,4500.2,0.231]
[1759852355204,0.3996,4501.4,4500.5,0.99918]
[1759852355408,0.99881,4502.2,4500.6,1.23016]
[1759852355605,0.99878,4502.4,4500.6,0.231]
[1759852355911,0.39959,4501.4,4500.1,0.0026587]
[1759852356103,0.99886,4502.0,4500.2,0.231]
[1759852356104,1e-05,4501.2,4500.2,0.231]
[1759852356309,1e-05,4501.2,4500.7,0.39965]
[1759852356507,1e-05,4501.2,4500.1,0.0026587]
[1759852356811,0.39967,4500.6,4500.4,0.39968]
[1759852357004,0.39965,4500.8,4500.6,0.39966]
[1759852357510,0.39965,4500.8,4500.7,0.231]
[1759852358105,0.39963,4501.0,4500.7,0.63065]
[1759852358304,1e-05,4501.2,4500.8,0.39964]
[1759852358906,1.93150348,4502.0,4500.8,0.99911]
[1759852359106,0.59427601,4502.1,4500.8,0.99911]
[1759852359304,0.59427601,4502.1,4501.4,0.39959]
[1759852359509,0.39957,4501.7,4501.5,0.231]
[1759852359709,0.99881,4502.2,4501.5,0.231]
[1759852359906,0.99881,4502.2,4501.5,0.63058]
[1759852360106,0.39957,4501.7,4501.5,0.63058]
[1759852360301,0.0020285,4502.4,4501.5,0.231]
[1759852360508,2.209,4502.5,4501.5,0.231]
[1759852360509,0.42033818,4502.5,4501.6,40.8]
[1759852360703,1.5411,4503.1,4501.6,40.8]
[1759852360902,0.73969914,4503.4,4501.8,0.99889]
[1759852361103,0.39948,4502.7,4502.1,0.39952]
[1759852361312,0.39949,4502.6,4502.4,0.3995]
[1759852361501,0.00188826,4502.6,4502.5,0.39949]
[1759852361711,0.00188826,4502.6,4502.5,0.231]
[1759852362508,0.00188826,4502.6,4501.8,0.39955]
[1759852362715,0.39956,4501.8,4501.6,40.8]
[1759852363014,0.39956,4501.8,4501.7,0.231]
[1759852363512,0.6194,4502.0,4501.7,0.231]
[1759852364103,1.5411,4502.4,4501.7,0.231]
[1759852364104,0.39955,4501.9,4501.7,0.231]
[1759852364306,0.39956,4501.8,4501.6,0.39957]
[1759852364509,0.39956,4501.8,4501.7,0.231]
[1759852364706,0.39956,4501.8,4500.7,0.99914]
[1759852364707,0.99899,4501.4,4500.7,1.58740649]
[1759852365017,0.39963,4501.0,4500.9,0.39964]
[1759852365216,0.39963,4501.0,4500.8,0.231]
[1759852365217,0.25153,4501.0,4500.8,0.231]
[1759852365414,0.25153,4501.0,4500.9,0.39964]
[1759852365619,0.25153,4501.0,4500.8,0.231]
[1759852366007,2.1605,4501.0,4500.4,40.8]
[1759852366317,2.1605,4501.0,4500.4,41.19967]
[1759852366503,0.39965,4500.8,4500.5,0.231]
[1759852366713,0.99899,4501.4,4500.7,0.39965]
[1759852367017,1.61849,4501.0,4500.3,0.39969]
[1759852367319,1.61849,4501.0,4500.4,41.031]
[1759852367508,1.61849,4501.0,4500.1,0.0026587]
[1759852367509,0.39969,4500.3,4500.1,0.0026587]
[1759852367708,0.39969,4500.3,4500.2,0.231]
[1759852367909,0.6194,4500.5,4500.2,0.231]
[1759852368115,0.6194,4500.5,4500.2,41.031]
[1759852368515,0.6194,4500.5,4500.2,0.231]
[1759852368715,1.5411,4500.3,4500.2,0.231]
[1759852369112,1.61848,4501.0,4500.2,0.231]
[1759852369113,0.99882,4502.2,4500.4,0.9992]
[1759852369310,0.45286335,4502.5,4500.6,0.99915]
[1759852369511,0.39958,4501.6,4500.7,0.231]
[1759852369815,0.39956,4501.8,4501.5,0.39958]
[1759852370118,0.9987,4502.7,4501.9,0.39954]
[1759852370313,0.9987,4502.7,4502.0,0.63054]
[1759852370514,0.99781,4503.2,4502.0,0.231]
[1759852370715,0.99855,4503.4,4502.1,0.1146]
[1759852370920,0.39952,4502.2,4502.1,0.1146]
[1759852371120,0.99861,4503.1,4502.2,0.1127]
[1759852371417,0.39953,4502.1,4501.7,0.39956]
[1759852371623,0.99877,4502.4,4501.6,0.231]
[1759852371922,0.6194,4503.0,4501.8,0.1127]
[1759852372126,1.00149118,4503.0,4501.8,0.9095]
[1759852372323,0.39951,4502.3,4502.1,0.9095]
[1759852372523,0.39952,4502.2,4502.1,0.9095]
[1759852374630,0.99859,4503.2,4502.1,0.9095]
[1759852374825,0.99841,4504.0,4502.8,1.6068]
[1759852375021,0.99837,4504.2,4503.2,0.39943]
[1759852375322,0.99816,4505.1,4503.3,0.8653]
[1759852375523,0.39936,4504.0,4503.8,0.8653]
[1759852375724,0.40147339,4504.0,4503.8,0.23342703]
[1759852375927,0.59887,4504.8,4503.9,0.8653]
[1759852376327,0.39935,4504.1,4503.9,0.8653]
[1759852376530,0.39935,4504.1,4503.8,0.23342703]
[1759852376725,0.39935,4504.1,4503.8,1.99035775]
[1759852376925,0.40168162,4504.1,4503.8,0.23342703]
[1759852377224,9.97924,4506.3,4503.8,0.23342703]
[1759852377225,0.99803,4505.7,4504.7,1.3193]
[1759852377430,0.227,4505.9,4504.6,1.3193]
[1759852377723,0.3993,4504.7,4504.6,1.3193]
[1759852378025,0.40155174,4504.7,4504.6,1.3193]
[1759852378230,0.00225174,4504.7,4504.6,1.3193]
[1759852378723,0.00225174,4504.7,4504.0,0.2417]
[1759852378924,0.39934,4504.2,4504.1,1.3193]
[1759852379727,0.39937,4503.9,4503.8,0.27796751]
[1759852380029,0.39937,4503.9,4503.8,1.59726751]
[1759852380428,0.99832,4504.4,4503.8,1.59726751]
[1759852380429,1.5411,4504.8,4503.8,0.27796751]
[1759852380732,0.39935,4504.2,4503.8,0.27796751]
[1759852380929,0.99814,4505.2,4504.1,1.3193]
[1759852381129,0.39934,4504.2,4504.1,1.3193]
[1759852381325,0.99834,4504.3,4503.8,0.27796751]
[1759852381622,1.6177,4504.5,4503.8,0.27796751]
[1759852381822,0.39935,4504.2,4503.8,0.27796751]
[1759852382023,0.39932,4504.5,4504.0,0.2417]
[1759852382226,1.61738,4506.0,4504.1,0.231]
[1759852382432,0.6194,4507.5,4504.8,0.39929]
[1759852382624,0.99781,4506.8,4505.1,1.5782]
[1759852382930,0.99794,4506.2,4504.6,1.5782]
[1759852383123,0.39928,4505.0,4504.5,0.6747]
[1759852383324,0.99798,4506.0,4504.5,40.8]
[1759852383325,0.39928,4504.9,4504.5,40.8]
[1759852383725,0.39929,4504.8,4504.2,0.231]
[1759852383925,0.39929,4504.8,4504.2,1.8092]
[1759852384133,0.99798,4506.0,4504.5,0.6747]
[1759852384134,0.39928,4505.0,4504.5,0.6747]
[1759852384333,10.06932,4506.7,4504.5,0.6747]
[1759852384334,0.127,4506.1,4504.6,1.5782]
[1759852384630,44.6194,4507.1,4504.9,0.39927]
[1759852384631,0.99791,4506.3,4504.9,0.39927]
[1759852384836,0.99791,4506.3,4505.1,1.5782]
[1759852385132,0.99786,4506.5,4505.1,1.8092]
[1759852385329,0.00275349,4506.5,4505.2,1.5782]
[1759852385630,0.00275349,4506.5,4505.6,1.5782]
[1759852385834,0.00275349,4506.5,4505.7,0.3992]
[1759852386032,0.39916,4506.3,4505.8,1.5782]
[1759852386237,0.00275349,4506.5,4505.7,0.231]
[1759852386536,0.99753,4508.0,4506.6,1.5782]
[1759852386932,1.6381,4509.3,4507.6,1.5782]
[1759852387141,0.18781401,4509.3,4507.7,0.39903]
[1759852387336,0.18781401,4509.3,4507.8,1.5782]
[1759852387634,0.00202911,4509.3,4507.9,1.5782]
[1759852387833,0.39892,4509.1,4509.0,0.6747]
[1759852388034,0.00202911,4509.3,4509.1,1.5782]
[1759852388332,0.39888,4509.5,4509.1,1.5782]
[1759852388533,0.39889,4509.4,4509.1,1.5782]
[1759852388730,0.99702,4510.3,4509.1,1.5782]
[1759852388932,0.99693,4510.7,4509.1,1.5782]
[1759852389128,0.99662,4512.1,4509.7,1.5782]
[1759852389328,0.39884,4509.9,4509.6,0.6747]
[1759852389631,0.39881,4510.3,4509.7,1.5782]
[1759852389830,0.39879,4510.4,4510.3,1.5782]
[1759852390532,1.6381,4512.2,4510.3,1.5782]
[1759852390736,0.39876,4510.9,4510.3,1.5782]
[1759852391131,0.39872,4511.3,4510.8,0.6747]
[1759852391327,0.39874,4511.0,4510.9,1.5782]
[1759852391536,0.39874,4511.0,4510.9,1.84727329]
[1759852391730,5.4009718,4511.0,4510.9,0.26907329]
[1759852391936,0.3988,4510.3,4510.2,2.2529]
[1759852392231,0.0022318,4511.0,4509.7,1.5782]
[1759852392432,0.0022318,4511.0,4509.6,0.6747]
[1759852392433,0.4009718,4511.0,4510.0,0.39882]
[1759852392631,0.4009718,4511.0,4510.9,1.5782]
[1759852393130,0.4009718,4511.0,4510.8,0.6747]
[1759852393131,0.3988,4510.3,4510.2,0.6747]
[1759852393330,0.3988,4510.3,4509.6,0.94739845]
[1759852393331,0.99699,4510.4,4509.6,0.94739845]
[1759852393536,0.99699,4510.4,4509.6,2.52559845]
[1759852393938,0.39886,4509.7,4509.6,2.52559845]
[1759852394133,0.39885,4509.8,4509.7,1.5782]
[1759852394538,0.39885,4509.8,4509.6,0.27269845]
[1759852394738,5.0,4509.8,4509.1,1.5782]
[1759852394933,0.3989,4509.3,4508.5,0.231]
[1759852395138,0.3989,4509.3,4509.1,1.5782]
[1759852395432,0.39886,4509.7,4509.1,1.84185125]
[1759852395631,2.63527,4509.6,4509.1,1.84185125]
[1759852395833,0.99717,4509.6,4509.1,0.26365125]
[1759852396031,0.99717,4509.6,4508.4,0.6747]
[1759852396032,0.39889,4509.3,4509.2,1.5782]
[1759852396630,0.72865269,4510.6,4509.2,1.5782]
[1759852396831,1.8691,4510.5,4509.2,1.5782]
[1759852397040,0.99706,4510.1,4509.2,1.5782]
[1759852397437,0.39889,4509.3,4509.2,1.5782]
[1759852399433,0.99702,4510.3,4509.5,0.6747]
[1759852399632,0.39885,4509.8,4509.6,1.5782]
[1759852399838,0.39886,4509.7,4509.6,1.5782]
[1759852400138,0.39884,4509.9,4509.1,0.27078499]
[1759852400334,0.99702,4510.3,4509.5,0.6747]
[1759852400639,0.39886,4509.7,4509.6,1.5782]
[1759852400936,0.3989,4509.2,4509.1,1.5782]
[1759852401131,0.39892,4509.1,4509.0,0.26758529]
[1759852401334,0.39892,4509.1,4509.0,1.5782]
[1759852401530,1.6381,4510.1,4509.0,2.2529]
[1759852401736,0.99713,4509.8,4509.1,1.5782]
[1759852401931,0.231,4510.0,4509.1,1.5782]
[1759852401932,0.3989,4509.2,4509.1,1.5782]
[1759852402235,0.99715,4509.7,4509.1,1.5782]
[1759852402236,0.99704,4510.2,4509.1,1.5782]
[1759852402437,0.99691,4510.8,4509.5,0.6747]
[1759852402640,0.0022318,4511.0,4509.6,1.5782]
[1759852402836,0.99693,4510.7,4509.6,1.5782]
[1759852403147,0.99695,4510.6,4509.6,1.5782]
[1759852403436,0.39882,4510.2,4509.6,1.5782]
[1759852403637,0.39882,4510.2,4510.0,0.6747]
[1759852403840,0.39882,4510.2,4510.1,1.5782]
[1759852404743,0.0022318,4511.0,4510.1,1.5782]
[1759852404936,1.6381,4510.9,4510.1,1.5782]
[1759852405136,0.3988,4510.3,4509.6,1.5782]
[1759852405533,0.231,4510.7,4509.6,1.5782]
[1759852405534,0.39877,4510.7,4509.6,1.5782]
[1759852405741,0.3988,4510.4,4509.6,1.5782]
[1759852405932,0.39878,4510.6,4510.3,3.5223]
[1759852406136,0.39879,4510.5,4510.4,1.5782]
[1759852406736,0.0022318,4511.0,4510.4,1.5782]
[1759852406941,0.0022318,4511.0,4510.6,1.5782]
[1759852407438,0.0022318,4511.0,4510.7,0.39876]
[1759852407641,0.39865,4512.1,4511.1,1.5782]
[1759852407842,0.142,4512.6,4511.2,1.5782]
[1759852408041,2.2819,4513.0,4511.5,0.39869]
[1759852408235,2.2819,4513.0,4511.6,1.5782]
[1759852408236,0.23,4512.8,4511.6,1.5782]
[1759852408441,1.64011,4513.5,4511.6,3.78995093]
[1759852408642,0.3986,4512.7,4511.8,0.39867]
[1759852408943,0.42338216,4512.9,4512.1,1.5782]
[1759852409145,0.39858,4512.8,4512.1,1.5782]
[1759852409346,0.02480216,4512.9,4512.1,1.5782]
[1759852409536,0.39859,4512.7,4512.1,1.5782]
[1759852409740,0.39858,4512.8,4512.1,1.5782]
[1759852409946,0.02480216,4512.9,4512.1,1.5782]
[1759852410238,0.39856,4513.1,4512.2,0.39863]
[1759852410439,0.39858,4512.9,4512.5,0.6747]
[1759852410640,0.39857,4513.0,4512.5,0.6747]
[1759852410842,0.39858,4512.8,4512.6,1.5782]
[1759852411041,0.99631,4513.5,4512.6,1.5782]
[1759852411244,0.3986,4512.7,4512.6,0.2699987]
[1759852411439,0.3986,4512.7,4512.6,1.5782]
[1759852412043,0.40129921,4512.8,4512.5,0.6747]
[1759852412244,0.40129921,4512.8,4512.6,1.5782]
[1759852412447,0.40129921,4512.8,4512.6,0.26678286]
[1759852412637,0.40129921,4512.8,4512.7,1.6663]
[1759852412839,0.00271921,4512.8,4512.7,1.6663]
[1759852413244,0.39855,4513.2,4513.0,0.6912]
[1759852413445,0.39855,4513.2,4513.1,1.6663]
[1759852413940,0.99639,4513.1,4512.6,0.27132109]
[1759852414153,0.39864,4512.1,4512.0,1.6663]
[1759852414448,0.39867,4511.8,4511.5,2.34385091]
[1759852414650,0.99657,4512.3,4511.5,0.67755091]
[1759852414842,0.23,4512.6,4511.6,1.6663]
[1759852415040,0.39868,4511.7,4511.6,1.6663]
[1759852415452,1.7326,4511.6,4511.5,0.2688774]
[1759852415651,0.39868,4511.7,4511.5,0.2688774]
[1759852415950,1.7326,4511.6,4511.5,0.2688774]
[1759852416339,1.7326,4511.6,4511.5,0.00285091]
[1759852416542,5.0,4511.6,4511.5,0.00285091]
[1759852416748,5.23,4511.6,4511.5,1.66915091]
[1759852417448,0.39866,4511.9,4511.6,1.6663]
[1759852417648,0.39866,4511.9,4511.5,0.95961818]
[1759852417851,0.39866,4511.9,4511.6,1.6663]
[1759852418047,0.39868,4511.8,4511.5,0.95961818]
[1759852418346,0.39868,4511.8,4511.6,1.6185]
[1759852418554,0.39868,4511.7,4511.6,1.6185]
[1759852418851,2.72904,4512.9,4511.6,1.6185]
[1759852419048,0.68967659,4512.8,4511.6,1.6185]
[1759852419245,0.23,4512.8,4511.6,1.6185]
[1759852419548,0.39865,4512.1,4512.0,0.6773]
[1759852419748,0.39865,4512.1,4512.0,2.2958]
[1759852420048,0.23,4512.8,4512.0,0.6773]
[1759852420245,0.39864,4512.2,4512.1,1.6185]
[1759852420550,0.99634,4513.4,4512.1,1.6185]
[1759852420750,0.45951214,4513.3,4512.3,0.39862]
[1759852420950,1.6182,4514.0,4513.0,0.6773]
[1759852421246,0.23,4514.0,4513.1,1.6185]
[1759852421451,1.6182,4514.6,4513.1,2.01705]
[1759852421650,0.00168442,4514.6,4514.1,1.6185]
[1759852421845,0.00168442,4514.6,4514.5,1.6185]
[1759852422444,0.00168442,4514.6,4514.5,2.2958]
[1759852422650,1.6182,4516.3,4514.6,1.6185]
[1759852422845,0.3984,4515.0,4514.6,1.88341542]
[1759852423152,0.3984,4514.9,4514.6,1.88341542]
[1759852423542,0.39837,4515.3,4514.6,1.88341542]
[1759852423756,0.39838,4515.1,4515.0,2.2958]
[1759852424049,2.01658,4515.1,4515.0,0.0025496]
[1759852424247,0.39838,4515.1,4515.0,1.6210496]
[1759852424443,0.39838,4515.1,4515.0,0.0025496]
[1759852424647,2.01658,4515.1,4515.0,0.0025496]
[1759852424849,0.39838,4515.1,4515.0,0.0025496]
[1759852425549,0.39838,4515.1,4515.0,1.6210496]
[1759852427055,2.01661,4514.7,4514.6,0.26491542]
[1759852427257,0.39847,4514.1,4513.5,0.6773]
[1759852427553,1.6182,4514.7,4513.5,0.94387541]
[1759852427948,0.39851,4513.6,4513.5,0.94562372]
[1759852428260,2.01671,4513.6,4513.5,0.26832372]
[1759852428756,2.01671,4513.6,4513.5,0.00174831]
[1759852429356,1.6182,4513.5,4512.0,2.2958]
[1759852429557,0.39864,4512.2,4512.1,1.6185]
[1759852430354,0.39864,4512.2,4512.1,1.62023275]
[1759852430556,0.39864,4512.2,4512.1,1.88437812]
[1759852431958,2.01684,4512.2,4512.1,0.26587812]
[1759852432254,0.23,4512.7,4512.1,1.88437812]
[1759852432452,1.6182,4514.2,4512.6,1.6185]
[1759852432653,0.99624,4513.8,4512.6,1.6185]
[1759852432953,0.39854,4513.3,4512.6,1.6185]
[1759852433155,0.39855,4513.2,4512.6,1.6185]
[1759852433457,0.39856,4513.1,4512.6,1.6185]
[1759852433653,0.39857,4513.0,4512.6,1.6185]
[1759852434457,0.39859,4512.7,4512.6,1.6185]
[1759852434766,0.6397,4514.0,4512.6,1.6185]
[1759852434958,0.39857,4513.0,4512.6,1.6185]
[1759852435152,0.99624,4513.8,4512.6,1.6185]
[1759852435353,0.39857,4513.0,4512.6,1.6185]
[1759852435655,0.39854,4513.3,4513.1,1.6185]
[1759852435858,0.39855,4513.2,4513.1,1.6185]
[1759852438955,0.23,4514.2,4513.2,1.6185]
[1759852439154,0.39852,4513.5,4513.2,1.6185]
[1759852439360,0.3985,4513.8,4513.2,1.6185]
[1759852439563,0.39849,4513.9,4513.5,0.6773]
[1759852439757,0.3985,4513.8,4513.6,1.6185]
[1759852440153,0.99603,4514.8,4513.6,1.6185]
[1759852440352,1.3943,4515.2,4514.1,1.6185]
[1759852440663,0.39835,4515.5,4514.9,1.6185]
[1759852440858,0.99558,4516.9,4515.1,1.6185]
[1759852441060,0.39827,4516.4,4515.6,1.6185]
[1759852441564,0.39828,4516.3,4515.6,1.6185]
[1759852441765,0.00266526,4516.3,4516.0,0.6773]
[1759852442055,0.39825,4516.6,4516.1,1.6185]
[1759852442263,0.39825,4516.6,4516.0,0.6773]
[1759852442264,0.99545,4517.4,4516.5,0.6773]
[1759852442462,0.99545,4517.4,4516.6,1.6185]
[1759852442664,0.39824,4516.7,4516.6,1.5734]
[1759852442861,0.39829,4516.1,4516.0,1.5734]
[1759852443160,0.39833,4515.7,4515.6,0.00260698]
[1759852443353,0.39833,4515.7,4515.6,2.05984139]
[1759852443558,1.97023,4515.7,4515.6,0.00260698]
[1759852443763,0.39832,4515.8,4515.7,1.5734]
[1759852444254,0.39832,4515.8,4515.6,0.48906617]
[1759852444255,1.5719,4515.7,4515.6,0.48906617]
[1759852444458,0.39832,4515.8,4515.6,0.48906617]
[1759852444667,0.39832,4515.8,4515.7,1.5734]
[1759852444860,0.39832,4515.8,4515.6,0.48906617]
[1759852445066,1.5719,4515.7,4515.6,0.48906617]
[1759852445360,1.5719,4515.7,4514.1,1.5734]
[1759852445361,0.99594,4515.2,4514.1,1.5734]
[1759852445566,0.39846,4514.3,4514.2,1.5734]
[1759852445767,1.5719,4514.2,4513.5,2.2425]
[1759852445959,0.23,4515.1,4513.5,0.6691]
[1759852445960,0.99603,4514.8,4513.5,0.6691]
[1759852446160,0.3985,4513.8,4513.5,0.6691]
[1759852446465,0.39849,4513.9,4513.5,0.67069881]
[1759852446768,0.39851,4513.7,4513.6,1.5734]
[1759852448164,1.5719,4513.6,4513.5,0.48659979]
[1759852448371,1.5719,4513.6,4513.5,0.00159881]
[1759852448767,0.62851,4513.7,4513.5,0.47667218]
[1759852448964,2.20041,4513.7,4513.5,0.47667218]
[1759852449162,0.62851,4513.7,4513.6,1.5734]
[1759852449570,1.5719,4513.6,4513.5,0.47667218]
[1759852449770,6.5719,4513.6,4513.5,0.47667218]
[1759852450075,6.5719,4513.6,4513.5,0.00159881]
[1759852450368,0.99641,4513.1,4512.3,1.5734]
[1759852450575,0.99644,4512.9,4512.0,2.2425]
[1759852450865,0.39862,4512.4,4512.1,1.5734]
[1759852451069,0.3986,4512.6,4512.1,1.5734]
[1759852451264,0.00223538,4512.6,4512.1,1.5734]
[1759852451470,0.39862,4512.4,4512.2,1.5734]
[1759852451673,0.39862,4512.4,4512.1,0.00195921]
[1759852451870,0.39863,4512.2,4512.1,1.57535921]
[1759852452170,1.97053,4512.2,4512.1,0.00195921]
[1759852452369,0.39863,4512.2,4512.1,0.00195921]
[1759852452570,0.39863,4512.2,4512.1,1.57535921]
[1759852452767,0.39863,4512.2,4512.1,0.00195921]
[1759852453164,1.97053,4512.2,4512.1,0.00195921]
[1759852453566,0.39875,4510.9,4510.8,1.5734]
[1759852454472,0.39875,4510.9,4510.8,2.06728575]
[1759852454678,0.39875,4510.9,4510.8,2.06972398]
[1759852456276,1.97065,4510.9,4510.8,0.49632398]
[1759852456468,1.97065,4510.9,4510.8,0.00243823]
[1759852457274,1.97065,4510.9,4510.8,1.57583823]
[1759852457275,0.39875,4510.9,4510.8,1.57583823]
[1759852457578,0.62875,4510.9,4510.8,1.57583823]
[1759852457778,2.20065,4510.9,4510.8,0.00243823]
[1759852458170,1.97065,4510.9,4510.8,0.00243823]
[1759852458468,0.39886,4509.6,4509.5,1.5734]
[1759852459277,0.39886,4509.6,4509.5,1.57582295]
[1759852459576,0.39886,4509.6,4509.5,0.00242295]
[1759852459775,1.97076,4509.6,4509.5,0.00242295]
[1759852460078,0.39896,4508.6,4507.6,0.39904]
[1759852460278,0.39897,4508.4,4508.1,1.5734]
[1759852460673,0.39898,4508.3,4508.1,0.48334111]
[1759852460877,0.39898,4508.3,4508.2,1.5734]
[1759852461069,0.00242101,4508.3,4508.2,1.57519329]
[1759852462886,1.57432101,4508.3,4508.2,0.00179329]
[1759852463080,1.57432101,4508.3,4508.2,6.57519329]
[1759852463081,0.00242101,4508.3,4508.2,6.57519329]
[1759852463377,0.14,4509.8,4508.6,1.5734]
[1759852463679,0.14,4509.8,4509.0,0.6691]
[1759852463877,0.62886,4509.7,4509.1,1.5734]
[1759852464181,0.00260634,4509.7,4509.1,1.5734]
[1759852464880,0.40145634,4509.7,4509.6,1.5734]
[1759852465273,0.00260634,4509.7,4509.6,1.5734]
[1759852466171,0.99717,4509.6,4509.0,0.6691]
[1759852466376,0.39892,4509.0,4508.9,1.5734]
[1759852467882,0.23,4509.5,4508.9,1.5734]
[1759852468182,0.3989,4509.2,4509.1,1.5734]
[1759852468583,0.00260634,4509.7,4509.1,1.5734]
[1759852469078,0.39889,4509.3,4509.0,0.6691]
[1759852469283,0.39891,4509.2,4509.0,0.6691]
[1759852469485,0.39891,4509.2,4509.1,1.5734]
[1759852470986,0.39891,4509.2,4509.1,6.5734]
[1759852471288,0.00260634,4509.7,4509.6,1.5734]
[1759852471487,0.40145634,4509.7,4509.6,1.5734]
[1759852472185,0.00260634,4509.7,4509.6,1.5734]
[1759852473784,0.39879,4510.4,4510.0,0.6205]
[1759852473984,0.99674,4511.6,4510.1,2.09162]
[1759852474190,0.39875,4510.9,4510.2,0.39881]
[1759852474487,2.59257,4511.4,4510.0,41.4205]
[1759852474785,0.39879,4510.5,4510.1,1.6928]
[1759852474985,0.39879,4510.5,4510.0,0.6205]
[1759852475487,0.39877,4510.7,4510.6,1.6928]
[1759852476382,0.39882,4510.1,4510.0,0.6205]
[1759852476581,0.99694,4510.7,4509.5,2.3619]
[1759852476582,0.39886,4509.6,4509.5,2.3619]
[1759852476788,0.39886,4509.6,4509.5,1.6928]
[1759852477384,0.39891,4509.2,4509.1,1.6928]
[1759852477889,0.39889,4509.3,4509.1,1.6928]
[1759852478085,0.3989,4509.3,4508.6,1.6928]
[1759852478277,2.48897,4509.8,4508.6,1.6928]
[1759852478483,2.48897,4509.8,4508.5,0.6205]
[1759852478484,0.39891,4509.1,4509.0,2.2232]
[1759852478981,2.48897,4509.8,4509.1,1.6016]
[1759852478982,0.39889,4509.3,4509.1,1.6016]
[1759852479188,0.39891,4509.1,4509.0,2.2232]
[1759852479786,0.39889,4509.3,4509.0,0.6216]
[1759852479982,1.6206,4510.3,4509.1,1.6016]
[1759852480182,0.39884,4510.0,4509.5,0.6216]
[1759852480386,0.39885,4509.8,4509.6,1.6016]
[1759852480581,0.23,4510.5,4509.6,1.6016]
[1759852480891,0.39881,4510.2,4510.1,1.6016]
[1759852481083,0.23,4510.8,4510.1,1.6016]
[1759852481285,0.39877,4510.7,4510.1,1.6016]
[1759852481584,0.39877,4510.7,4510.6,1.6016]
[1759852482181,0.39882,4510.1,4510.0,0.6216]
[1759852482387,0.39882,4510.1,4510.0,2.2232]
[1759852482880,0.39882,4510.1,4510.0,1.6016]
[1759852483085,1.0165,4510.4,4509.4,1.6016]
[1759852483284,0.99704,4510.2,4509.3,0.23]
[1759852483486,0.99704,4510.2,4509.6,1.6016]
[1759852483689,0.39885,4509.8,4509.6,1.6016]
[1759852483885,0.39886,4509.6,4509.1,0.23]
[1759852484391,0.39886,4509.6,4509.5,2.2232]
[1759852485287,0.39885,4509.8,4509.6,1.6016]
[1759852485688,0.39886,4509.7,4509.6,1.6016]
[1759852491591,1.6206,4511.1,4509.7,1.6016]
[1759852491791,0.39877,4510.7,4510.6,1.6016]
[1759852492792,3.61386,4512.1,4510.6,1.6016]
[1759852492793,0.99665,4512.0,4510.6,1.6016]
[1759852492987,0.39874,4511.1,4511.0,0.6216]
[1759852493199,0.39872,4511.3,4511.1,1.6016]
[1759852493493,0.39868,4511.7,4511.5,0.6216]
[1759852493684,0.39868,4511.7,4511.6,1.6016]
[1759852493891,0.4003323,4511.7,4511.6,1.60415148]
[1759852495391,0.4003323,4511.7,4511.6,0.00255148]
[1759852495596,0.85595983,4511.7,4511.6,0.00255148]
[1759852495891,0.4003323,4511.7,4511.6,1.60415148]
[1759852496785,2.0209323,4511.7,4511.6,0.00255148]
[1759852498494,7.47700257,4511.7,4511.6,0.00255148]
[1759852500694,2.61743,4511.2,4509.6,1.1749405]
[1759852500889,2.61743,4511.2,4509.0,43.00900649]
[1759852500890,0.9969,4510.8,4509.5,0.8506]
[1759852501090,0.39876,4510.8,4510.0,1.439616]
[1759852501291,0.62773,4511.1,4511.0,2.2232]
[1759852501493,0.229,4511.1,4511.0,2.2232]
[1759852501693,0.0016523,4511.7,4511.6,1.6016]
[1759852501889,0.0016523,4511.7,4511.0,0.62320191]
[1759852502095,1.6206,4511.1,4511.0,0.00160191]
[1759852502290,0.39872,4511.2,4511.1,1.6016]
[1759852502690,1.585,4511.1,4511.0,0.00160191]
[1759852502900,2.04096644,4511.1,4511.0,0.00160191]
[1759852503399,0.45596644,4511.1,4511.0,1.55650191]
[1759852503597,0.45596644,4511.1,4511.0,0.00160191]
[1759852503805,2.04096644,4511.1,4511.0,0.00160191]
[1759852503999,7.04096644,4511.1,4511.0,0.00160191]
[1759852504602,0.45596644,4511.1,4511.0,1.55650191]